Cogmind - Beta 10.2 *** ADVENTURER MODE // 2022.02.09 @ 16:31:32 Player: Kaz Result: Destroyed by as-86656 with Assembled Blade Performance ------------- Evolutions (0) 0 Regions Visited (2) 400 Robots Destroyed (19) 95 Value Destroyed (343) 343 Prototype IDs (0) 0 Alien Tech Used (0) 0 Bonus (0) 0 TOTAL SCORE: 838 Bonus ------- None Cogmind --------- Core Integrity 0/250 Matter 291/300 Energy 95/100 System Corruption 0% Temperature Cool (303) Movement Core (1100) Ox21 Location -10/Mines Parts ------- > --- POWER (1) -------- (None) > --- PROPULSION (2) --- (None) > --- UTILITY (2) ------ High-capacity Storage Unit High-capacity Storage Unit > --- WEAPON (2) ------- Flail > --- INVENTORY (20) --- Ion Engine Light Ion Engine Wheel Wheel Armored Wheel Armored Wheel High-capacity Battery (400) High-capacity Matter Pod (200) High-capacity Matter Pod (200) Light Armor Plating Light Armor Plating EM Pulse Gun Light Assault Rifle Peak State ------------ > --- POWER ------------ Ion Engine > --- PROPULSION ------- Armored Wheel Armored Wheel > --- UTILITY ---------- High-capacity Storage Unit High-capacity Storage Unit > --- WEAPON ----------- Medium Laser Light Assault Rifle > --- INVENTORY -------- Light Ion Engine Wheel Wheel Compact Wheel Armored Wheel Medium Matter Pod Light Armor Plating EM Pulse Gun Light Assault Rifle [Rating: 10] Favorites ----------- Power Ion Engine Engine Ion Engine Propulsion Armored Wheel Wheel Armored Wheel Utility High-capacity Storage Unit Storage High-capacity Storage Unit Protection Light Armor Plating Weapon Light Assault Rifle Energy Gun Medium Laser Ballistic Gun Light Assault Rifle Ballistic Cannon Light Cannon Impact Weapon Flail Build | -11 -10 -10 ------- Run | Scr Mat Min Slots Evolved . | . . . Power . | . . . Propulsion . | . . . Utility . | . . . Weapon . | . . . Parts Attached 20 | 6 12 2 Power 2 | 1 . 1 Engine 2 | 1 . 1 Core . | . . . Reactor . | . . . Propulsion 6 | 2 4 . Treads . | . . . Leg . | . . . Wheel 6 | 2 4 . Hover . | . . . Flight . | . . . Utility 5 | 1 4 . Device . | . . . Storage 4 | 1 3 . Processor . | . . . Hackware . | . . . Protection 1 | . 1 . Artifact . | . . . Weapon 7 | 2 4 1 Energy Gun 3 | 2 1 . Energy Cannon . | . . . Ballistic Gun 2 | . 2 . Ballistic Cannon 1 | . 1 . Launcher . | . . . Special Weapon . | . . . Impact Weapon 1 | . . 1 Slashing Weapon . | . . . Piercing Weapon . | . . . Special Melee Weapon . | . . . Unidentified Prototypes . | . . . Parts Lost 5 | . . 5 Power 1 | . . 1 Propulsion 2 | . . 2 Utility . | . . . Weapon 2 | . . 2 Highest Loss Streak 5 | . . 5 Average Slot Usage (%) 99 | . 99 99 Engine 13 | . 14 13 Wheel 28 | . 28 28 Storage 26 | . 26 28 Protection 1 | . 1 . Energy Gun 9 | . 12 . Ballistic Gun 12 | . 12 13 Ballistic Cannon 6 | . 2 14 Naked Turns . | . . . Heaviest Build 73 | 13 73 73 Greatest Support 32 | 20 32 24 Greatest Overweight (x) 5 | . 5 3 Average Overweight (x) 2 | . 3 2 Largest Inventory Capacity 20 | 6 20 20 Average Capacity 18 | 5 18 20 Most Carried 14 | 4 12 14 Average Carried 9 | 1 8 12 Final Capacity 20 | 6 20 20 Final Carried 13 | 1 10 13 Class Distribution -------------------- 88% | Hauler-Mutant 11% | Mutant Dominant Class ---------------- Hauler-Mutant | -10/Materials Hauler-Mutant | -10/Mines Resources | -11 -10 -10 ----------- Run | Scr Mat Min Matter Collected 730 | 237 453 40 Remotely . | . . . Salvage Created 542 | . 487 55 Parts 39 | . 34 5 Haulers Intercepted 2 | . 2 . Recyclers Shooed 2 | . 2 . Parts Field Recycled . | . . . Retrieved Matter . | . . . Parts Self-Destructed . | . . . Prevented . | . . . Kills | -11 -10 -10 ------- Run | Scr Mat Min Combat Hostiles Destroyed 16 | . 12 4 Guns 14 | . 12 2 Cannons 2 | . . 2 Classes Destroyed 5 | . 4 1 Hauler 2 | . 2 . Watcher 2 | . 2 . Swarmer 9 | . 6 3 Grunt 6 | . 6 . Assembled 1 | . . 1 Best Kill Streak 7 | . 7 3 Combat Bots Only 6 | . 6 3 Max Kills in Single Turn 1 | . 1 1 Gunslinging . | . . . Exploded . | . . . Melee . | . . . Uniques/NPCs Destroyed . | . . . Combat | -11 -10 -10 -------- Run | Scr Mat Min Damage Taken 1080 | . 331 749 Core 252 | . 68 184 Absorbed by Shields . | . . . Core Remaining (%) 100 | 100 . . Volleys Fired 55 | . 47 8 Largest 2 | . 2 2 Hottest 80 | . 80 55 Shots Fired 108 | . 93 15 Gun 93 | . 86 7 Cannon 15 | . 7 8 Launcher . | . . . Special . | . . . Kinetic 59 | . 44 15 Thermal 29 | . 29 . Explosive . | . . . Electromagnetic 20 | . 20 . Robot Hit Streak 17 | . 17 7 Robot Miss Streak 2 | . 1 2 Penetration Max . | . . . Secondary Targets 3 | . 3 . Max Gunslinging Chain 1 | . 1 . Shots Hit Robots 85 | . 72 13 Core Hits 37 | . 31 6 Critical Hits . | . . . Critical Kills . | . . . Critical Parts Destroyed . | . . . Melee Attacks 2 | . . 2 Impact 2 | . . 2 Slashing . | . . . Piercing . | . . . Sneak Attacks . | . . . Combat Hostiles . | . . . Follow-up Attacks . | . . . Damage Inflicted 963 | . 766 197 Guns 690 | . 641 49 Cannons 178 | . 90 88 Explosions 35 | . 35 . Melee 60 | . . 60 Ramming . | . . . Kinetic 489 | . 352 137 Thermal 249 | . 249 . Explosive . | . . . Electromagnetic 165 | . 165 . Impact 60 | . . 60 Slashing . | . . . Piercing . | . . . Highest Corruption . | . . . Average Corruption . | . . . Corruption Purged . | . . . Overload Shots . | . . . Overflow Damage . | . . . Projectiles . | . . . Explosions . | . . . Melee . | . . . Knockbacks 3 | . . 3 Impact . | . . . Kinetic 3 | . . 3 Secondary . | . . . Self-Inflicted Damage 26 | . 26 . Shots 1 | . 1 . Rammed . | . . . Targets Rammed . | . . . Kicked . | . . . Crushed . | . . . Highest Temperature 289 | . 221 289 Average Temperature 86 | . 83 110 Received Heat Transfer 560 | . 120 440 Siege Activations . | . . . Robots Corrupted . | . . . Combat Hostiles . | . . . Parts Fried . | . . . Impact Corruptions . | . . . Robots Melted . | . . . Combat Hostiles . | . . . Parts Melted 1 | . 1 . Heat Transferred 679 | . 679 . Parts Sabotaged . | . . . Parts Stolen . | . . . Parts Stripped . | . . . Power Chain Reactions 1 | . 1 . Missiles Intercepted . | . . . Alert | -11 -10 -10 ------- Run | Scr Mat Min Peak Influence 194 | . 194 72 Initial 2 | . . 2 Average 69 | . 82 43 Maximum Alert Level . | . . . Low Security (%) 100 | 100 100 100 Level 1 . | . . . Level 2 . | . . . Level 3 . | . . . Level 4 . | . . . Level 5 . | . . . High Security . | . . . Max Security . | . . . Squads Dispatched 1 | . 1 . Investigation 1 | . 1 . Extermination . | . . . Reinforcement . | . . . Assault . | . . . Garrison . | . . . Intercept . | . . . Construction Impeded . | . . . Haulers Reinforced . | . . . Stealth | -11 -10 -10 --------- Run | Scr Mat Min Distress Signals . | . . . Communications Jammed . | . . . Distress Signals . | . . . Times Spotted 38 | . 15 23 Peak Tracking Total 20 | . 4 20 Tactical Retreats 1 | . . 1 Traps | -11 -10 -10 ------- Run | Scr Mat Min Traps Triggered 1 | . 1 . Indirectly . | . . . Trap Hack Attempts . | . . . Triggered . | . . . Disarmed . | . . . Reprogrammed . | . . . Reused . | . . . Traps Extracted . | . . . Installed . | . . . Triggered . | . . . Machines | -11 -10 -10 ---------- Run | Scr Mat Min Machines Disabled . | . . . Max in Single Turn . | . . . Machines Sabotaged . | . . . Garrisons Compromised . | . . . Overloaded Fab Kills . | . . . Fab Network Shutdowns . | . . . Hacking | -11 -10 -10 --------- Run | Scr Mat Min Machines Accessed 4 | . 4 . Terminals 1 | . 1 . Fabricators . | . . . Repair Stations 1 | . 1 . Recycling Units 2 | . 2 . Scanalyzers . | . . . Garrison Access . | . . . Total Hacks 8 | . 8 . Successful 4 | . 4 . Failed 4 | . 4 . Catastrophic . | . . . Database Lockouts . | . . . Manual . | . . . Terminals 2 | . 2 . Fabricators . | . . . Repair Stations 3 | . 3 . Recycling Units 3 | . 3 . Scanalyzers . | . . . Garrison Access . | . . . Terminal Hacks . | . . . Fabricator Hacks . | . . . Repair Station Hacks 2 | . 2 . Scan Component 1 | . 1 . Repair 1 | . 1 . Recycling Unit Hacks 2 | . 2 . Retrieve Components 2 | . 2 . Scanalyzer . | . . . Garrison Access Hacks . | . . . Unauthorized Hacks . | . . . Terminals . | . . . Fabricators . | . . . Repair Stations . | . . . Recycling Units . | . . . Scanalyzers . | . . . Garrison Access . | . . . Data Cores Recovered . | . . . Used . | . . . Hacking Detections 3 | . 3 . Full Trace Events . | . . . Feedback Events . | . . . Feedback Blocked . | . . . Robot Schematics Acquired . | . . . Robots Built . | . . . Matter . | . . . Time . | . . . Total Robot Build Rating . | . . . Part Schematics Acquired . | . . . Parts Built . | . . . Matter . | . . . Time . | . . . Total Part Build Rating . | . . . Parts Repaired 1 | . 1 . Time 13 | . 13 . Parts Recycled . | . . . Recycled Matter . | . . . Retrieved Matter . | . . . Retrieved Components 5 | . 5 . Parts Scanalyzed . | . . . Part Schematics Acquired . | . . . Parts Damaged . | . . . Bothacking | -11 -10 -10 ------------ Run | Scr Mat Min Used RIF Installer . | . . . Robots Hacked . | . . . Non-combat . | . . . Combat . | . . . Robot Hacks Applied . | . . . Relay Couplers Released . | . . . Robots Rewired . | . . . Allies Hacked . | . . . Hacks Repelled . | . . . Allies | -11 -10 -10 -------- Run | Scr Mat Min Total Allies . | . . . Largest Group . | . . . Highest-Rated Group . | . . . Highest-Rated Ally . | . . . Total Orders . | . . . Ally Attacks . | . . . Total Damage . | . . . Kills . | . . . Allies Corrupted . | . . . Allies Melted . | . . . Intel | -11 -10 -10 ------- Run | Scr Mat Min Robot Analysis Total . | . . . Derelict Logs Recovered 2 | . . 2 Drone Launches . | . . . Drone Recoveries . | . . . Exploration | -11 -10 -10 ------------- Run | Scr Mat Min Turns Passed 1484 | 44 1011 429 Spaces Moved 1047 | 42 661 344 Core 6 | 6 . . Treads . | . . . Legs . | . . . Wheels 1041 | 36 661 344 Hover . | . . . Flight . | . . . Fastest Speed 50 | 50 80 110 Average Speed 118 | 75 123 113 Slowest Speed 140 | 80 140 120 Overloaded Moves . | . . . Propulsion Burnouts . | . . . Robots Hopped . | . . . Cave-ins Triggered . | . . . Exploration Rate (%) 55 | 4 96 66 Regions Visited 2 Branch Regions 1 Pre-discovered Areas . | . . . Known Exits Taken . | . . . Unknown Exits Taken 2 | 1 1 . Scrap Searched 1 | . . 1 Spaces Dug . | . . . Terrain Destroyed 3 | . 3 . Melee . | . . . Projectile . | . . . AOE 3 | . 3 . Terrain Rammed . | . . . Walls Destroyed . | . . . Machines Disabled . | . . . Actions | -11 -10 -10 --------- Run | Scr Mat Min Total 1192 | 54 771 367 Wait 22 | . 17 5 Move 1045 | 41 660 344 Hop . | . . . Pick Up 35 | 7 23 5 Fast Attach . | . . . Attach 11 | 6 4 1 Detach . | . . . Swap 9 | . 8 1 Drop 13 | . 12 1 Fire 55 | . 47 8 Melee 2 | . . 2 Ram . | . . . Kick . | . . . Crush . | . . . Escape Stasis . | . . . Rewire . | . . . Trap . | . . . Miscellaneous . | . . . Route ------- -11/Scrapyard -10/Materials (discovered 5 exits: [*Mat x3] / [*Min x2]) -10/Mines History --------- Turn | Location | Event 7 | -11/Scrapyard | Discovered new exit (range 15) 45 | -11/Scrapyard | Entered Materials 269 | -10/Materials | Discovered new exit (range 11) 410 | -10/Materials | Discovered new exit (range 4) 456 | -10/Materials | Build established: Hauler-Mutant 699 | -10/Materials | Discovered new exit (range 15) 846 | -10/Materials | Repaired Hcp. Storage Unit 898 | -10/Materials | Discovered new exit (range 16) 1012 | -10/Materials | Discovered new exit (range 15) 1056 | -10/Materials | Entered Mines 1456 | -10/Mines | Assembled infested the area 1461 | -10/Mines | Assisted by a Guerilla fighting off Assembled 1479 | -10/Mines | Core integrity fell below 50% 1482 | -10/Mines | Core integrity fell below 20% 1485 | -10/Mines | Destroyed by as-86656 with Assembled Blade Last Messages --------------- 01417_ Found 29 Matter. 01420_ Acquired Lgt. Armor Plating. 01423_ Acquired derelict log, extracted data. Data stored: Storage entrances (x1). 01438_ K-01 Serf collects debris. 01456_ ALERT: Infestation in the mines, dispatching Demolisher response squad. 01460_ 4A-CF9(h): "I'll hold them off! Go on ahead or try to find another way!" 01460_ HV Slug penetrates Wall. 01461_ A derelict emerges from the shadows: "You need to get out of here! I've been tracking a group of Assembled to figure out where they're coming from, and they're closing on this area, come on!" [Achievement: Hunted] 01470_ as-09860 knocked back. 01472_ as-88416 destroyed. 01475_ as-47424 knocked back. 01476_ Lgt. Assault Rifle destroyed. 01478_ Lgt. Ion Engine destroyed. 01478_ as-22981 knocked back. 01484_ Arm. Wheel destroyed. 01484_ Lgt. Cannon destroyed. 01484_ Arm. Wheel destroyed. Map ----- +----------------------------------------------------+ | ???????????????????????????# #### ## #??? | | ??????????????????????###### #??# ### ##?? | | ??????????????????????# ##?# #?# #?? | | ??????????????????????# !!! #?# #?# #?? | | ??????????????????????# ! ! #?# #?# #?? | | ??????????????????????# #?# #### #?? | | ??????????????????????# !! #?# ## ##? | | ??????????????????????# #?#### ### ## | | ??????????????????????##########????# ### | | ????????????????????????????????????# ## | | ?????????? ?????????????????????????#=% = | | ?????????? ??????????????????????# %= | | ????????? %?????????????????????####### ### | | ????????? ! ???????????###????????????# #?? | | ????????? ?????????## ##???????????# #?? | | ??????? ???????## #???????????# ### | | ?????? ????### ##??????????# | | ?????? "#### ###????????# | | ???????# ##???????###### | | ????????# ####?????????? | | ?????????#### ### ## ##????????? | | ????????????# #????# ?## #????????? | | ???????????????????# ??# #????????? | | ??????????????????? ??#a a ##???????? | | ???????????????????#??##aaa ##??????? | | ??????????????????????#@a ## ######?? | | ???????????????????? aaa #### """ #?? | | ?????????????????? aaa #??# """ #?? | | ??????????????????# aa #??# """ ### ### | | ??????????????????# ##??# #?# | | ??????????????????## #???# ##?# | | ???????????????????## ???# ###??##### | | ????????????????????## ??# ##????????# | | ?????????????????????## ? ##??????????# | | ??????????????????????#### ####???????????# | | ??????????????????????????# #???????????????# | | ???????????????????????????# ????????????????# | | ???????????????????????????#? ????????????????# | | ?????????????????????????????????????????????##% | | ??????????????????????????????????????????#### | | ?????????????????????????????????????????## | | ?????????????????????????????????????????# | | ?????????????????????????????????? | | ??????????????????????????????? | | ???????????????????????????????? # | | ???????????????????????????????? ## | | ????????????????????????????????? #?? | | ????????????????????????????????? #### #??? | | ?????????????????????????????????# ????###???? | | ??????????????????????????????????# ???????????? | +----------------------------------------------------+ Best States ------------- Heat Dissipation 25 Energy Generation 10 Energy Capacity 250 Matter Stores 300 Matter Capacity 300 Sight Range 16 Terrain Scan Density 10 Armor Coverage 150 Resistance: KI 20 Resistance: TH 20 Resistance: EX 20 Resistance: EM 20 Resistance: I 20 Resistance: S 20 Resistance: P 20 Evasion (%) 44 Offensive Hacking 10 Item Schematics ----------------- None Robot Schematics ------------------ None Fabricated ------------ Nothing Alien Tech Used ----------------- None Achievements -------------- Hunted Challenges ------------ None Game ------ Seed DirtySignalNetwork Manual? 0 Play Time 00:18:49 Cumulative 62.3 hours Start 2022.02.09 @ 16:16:50 End 2022.02.09 @ 16:31:32 Sessions 1 Manual Loads 0 Difficulty Adventurer Special Mode None Game No. 51 Rogue 46 Adventurer 5 Explorer 0 Win Type - Total 0 Types 0/0/0/0/0/0/0/0/0 Lore% 7 Gallery% 30 Achievement% 20 Wizard Run 0 Options --------- ASCII 0 Keyboard 0 Movement Mouse Keybinds 0 Fullscreen 1 Font 24/Proggy Map View 113x50 Tactical HUD 1 Map Filters NONE Filters NONE Steam 1 RUN: 5986878e-a895-4b33-a5ce-c7b2bc0f91ce